bitfinex/quotes_SOLUSD_20250602
["timestamp","ask_amount","ask_price","bid_price","bid_amount"]
[1748895501319,38.20277847,154.29,154.27,6.48214169]
[1748895501521,38.20277847,154.29,154.28,10.52]
[1748895503542,38.20277847,154.29,154.28,17.00172154]
[1748895503922,8.11495134,154.32,154.28,17.00172154]
[1748895504247,172.4,154.34,154.29,40.18]
[1748895504445,38.20277847,154.3,154.29,40.18]
[1748895505537,38.20277847,154.3,154.28,10.52]
[1748895505738,38.20277847,154.29,154.28,10.52]
[1748895507036,38.20277847,154.29,154.28,17.00168517]
[1748895508027,38.20277847,154.29,154.28,57.18168517]
[1748895508229,38.20277847,154.3,154.28,57.18168517]
[1748895513659,7.68,154.37,154.28,57.18168517]
[1748895513952,159.0073427,154.41,154.33,38.20277847]
[1748895514150,159.0073427,154.41,154.34,88.92277847]
[1748895514351,38.20277847,154.39,154.34,88.92277847]
[1748895514558,12.6073427,154.41,154.35,38.20277847]
[1748895514559,38.20277847,154.4,154.35,38.20277847]
[1748895514745,11.0466427,154.41,154.36,18.64964886]
[1748895514948,38.20277847,154.41,154.37,40.18]
[1748895515150,7.7964,154.45,154.38,18.64964886]
[1748895515448,38.20277847,154.44,154.39,48.76277847]
[1748895515627,38.20277847,154.45,154.4,78.40277847]
[1748895515969,26.0,154.48,154.4,40.2]
[1748895515970,38.20277847,154.44,154.4,40.2]
[1748895516130,38.20277847,154.44,154.41,6.47626449]
[1748895516857,38.20277847,154.42,154.41,6.47626449]
[1748895517667,38.20277847,154.42,154.41,46.67626449]
[1748895517970,6.47374894,154.47,154.39,17.03696759]
[1748895518144,38.20277847,154.42,154.41,40.2]
[1748895519241,32.47341352,154.48,154.41,46.67626449]
[1748895519752,38.20277847,154.43,154.41,46.67626449]
[1748895520457,38.20277847,154.44,154.41,46.67626449]
[1748895520653,154.52,154.49,154.41,46.67626449]
[1748895520846,154.52,154.49,154.42,38.20277847]
[1748895520847,38.20277847,154.46,154.42,38.20277847]
[1748895521344,38.20277847,154.47,154.43,44.67820422]
[1748895521648,38.20277847,154.47,154.44,50.74]
[1748895522256,38.20277847,154.46,154.44,50.74]
[1748895523654,26.0,154.49,154.44,57.21470383]
[1748895523853,38.20277847,154.47,154.44,57.21470383]
[1748895524872,26.0,154.5,154.44,50.74]
[1748895524873,38.20277847,154.45,154.44,50.74]
[1748895525473,38.20277847,154.45,154.44,17.03500647]
[1748895525660,26.0,154.49,154.44,57.19500647]
[1748895525863,26.0,154.51,154.44,57.19500647]
[1748895526048,38.20277847,154.46,154.44,57.19500647]
[1748895528150,38.20277847,154.47,154.44,73.38252265]
[1748895528383,38.20277847,154.49,154.44,111.58530112]
[1748895528680,38.20277847,154.49,154.45,38.20277847]
[1748895529476,8.33333333,154.52,154.45,38.20277847]
[1748895529693,38.20277847,154.51,154.47,38.20277847]
[1748895529853,38.20277847,154.51,154.48,40.14]
[1748895530175,38.20277847,154.51,154.49,10.54]
[1748895530360,46.5361118,154.52,154.5,6.4724919]
[1748895530676,46.5361118,154.52,154.51,40.14]
[1748895532315,46.5361118,154.52,154.48,50.66]
[1748895532597,38.20277847,154.49,154.48,10.54]
[1748895532978,38.20277847,154.49,154.43,6.47526541]
[1748895533177,39.77577847,154.5,154.43,17.01526541]
[1748895533178,38.20277847,154.44,154.43,17.01526541]
[1748895533397,38.20277847,154.44,154.43,57.17526541]
[1748895533704,38.20277847,154.44,154.43,17.01526541]
[1748895533991,38.20277847,154.44,154.43,17.01542575]
[1748895534786,6.2295,154.48,154.43,17.01542575]
[1748895534985,38.20277847,154.44,154.43,10.54]
[1748895535181,38.20277847,154.44,154.43,50.7]
[1748895535384,38.20277847,154.44,154.43,10.54]
[1748895536102,38.20277847,154.44,154.39,10.54]
[1748895536315,38.20277847,154.4,154.39,50.7]
[1748895536596,38.20277847,154.4,154.39,57.17710343]
[1748895537074,38.20277847,154.4,154.39,10.54]
[1748895538073,82.8822864,154.4,154.35,10.54]
[1748895538272,38.20277847,154.36,154.35,50.7]
[1748895538520,26.0,154.33,154.23,16.20955715]
[1748895538682,38.20277847,154.26,154.24,10.54]
[1748895538993,38.20277847,154.29,154.25,40.24]
[1748895539582,38.20277847,154.28,154.25,40.24]
[1748895540313,38.20277847,154.29,154.25,78.44277847]
[1748895540622,38.20277847,154.26,154.24,10.54]
[1748895540906,38.20277847,154.25,154.24,10.54]
[1748895541205,38.20277847,154.25,154.24,57.28340248]
[1748895541623,38.20277847,154.26,154.24,57.28340248]
[1748895541907,146.4,154.3,154.24,73.4919087]
[1748895542111,38.20277847,154.28,154.24,73.4919087]
[1748895542813,38.20277847,154.28,154.24,111.69468717]
[1748895544116,38.20277847,154.28,154.24,73.4919087]
[1748895545496,38.20277847,154.28,154.24,111.69468717]
[1748895545702,38.20277847,154.27,154.24,73.4919087]
[1748895547006,38.20277847,154.28,154.24,111.69468717]
[1748895548511,38.20277847,154.28,154.24,73.4919087]
[1748895549514,38.20277847,154.28,154.25,18.64964886]
[1748895549809,38.20277847,154.3,154.27,18.64964886]
[1748895550013,38.20277847,154.3,154.28,40.22]
[1748895550188,146.4,154.34,154.29,10.62]
[1748895550504,38.20277847,154.3,154.29,10.62]
[1748895551506,38.20277847,154.3,154.29,17.10130144]
[1748895552092,38.20277847,154.3,154.29,10.62]
[1748895552714,76.40555694,154.3,154.25,6.48298217]
[1748895552923,38.20277847,154.26,154.25,46.72298217]
[1748895553210,38.20277847,154.26,154.24,6.48324761]
[1748895553392,38.20277847,154.3,154.24,6.48324761]
[1748895553393,38.20277847,154.25,154.24,46.74324761]
[1748895556217,38.20277847,154.25,154.24,62.95175383]
[1748895557529,38.20277847,154.26,154.24,62.95175383]
[1748895558101,26.0,154.31,154.24,62.95175383]
[1748895558299,38.20277847,154.26,154.24,62.95175383]
[1748895558499,38.20277847,154.25,154.23,17.1036427]
[1748895558817,38.20277847,154.24,154.23,10.62]
[1748895559014,38.20277847,154.24,154.22,40.22]
[1748895559193,38.20277847,154.24,154.22,46.70410803]
[1748895559617,38.20277847,154.23,154.22,46.70410803]
[1748895561024,38.20277847,154.23,154.22,6.48410803]
[1748895562241,38.20277847,154.23,154.2,6.4850843]
[1748895562526,38.20277847,154.23,154.19,10.62]
[1748895562527,38.20277847,154.21,154.19,10.62]
[1748895562730,38.20277847,154.2,154.19,10.62]
[1748895562932,26.0,154.25,154.19,17.10550489]
[1748895563230,38.20277847,154.2,154.19,17.10550489]
[1748895564043,38.20277847,154.21,154.19,33.31926713]
[1748895564328,146.4,154.27,154.2,18.64964886]
[1748895564516,38.20277847,154.23,154.21,40.22]
[1748895565022,146.4,154.27,154.21,40.22]
[1748895565023,38.20277847,154.22,154.21,40.22]
[1748895566330,38.20277847,154.22,154.21,46.70466377]
[1748895566535,38.20277847,154.22,154.21,46.68466377]
[1748895572741,38.20277847,154.22,154.21,46.64466377]
[1748895573411,38.20277847,154.22,154.21,40.16]
[1748895573618,38.20277847,154.22,154.2,6.48492939]
[1748895573818,38.20277847,154.21,154.2,6.48492939]
[1748895574017,38.20277847,154.21,154.2,46.64492939]
[1748895575827,38.20277847,154.21,154.19,17.10526166]
[1748895576030,38.20277847,154.2,154.19,17.10526166]
[1748895576228,38.20277847,154.2,154.19,57.24526166]
[1748895576617,38.20277847,154.2,154.19,17.10526166]
[1748895576823,38.20277847,154.2,154.19,10.62]
[1748895577030,38.20277847,154.2,154.19,50.76]
[1748895577330,38.20277847,154.2,154.19,10.62]
[1748895577525,76.40555694,154.2,154.16,99.72644655]
[1748895577849,38.20277847,154.2,154.18,40.14]
[1748895578023,38.20277847,154.2,154.15,10.56]
[1748895578223,26.0,154.17,154.15,10.56]
[1748895578450,26.0,154.17,154.15,50.7]
[1748895578936,38.20277847,154.16,154.15,50.7]
[1748895579118,38.20277847,154.16,154.15,10.56]
[1748895580050,38.20277847,154.16,154.15,17.0471878]
[1748895580415,38.20277847,154.16,154.15,10.56]
[1748895580731,26.0,154.17,154.15,10.56]
[1748895580931,38.20277847,154.16,154.15,17.0471303]
[1748895581921,38.20277847,154.16,154.15,10.56]
[1748895583431,38.20277847,154.16,154.15,50.7]
[1748895587352,22.96144787,154.16,154.15,50.7]
[1748895589448,22.96144787,154.16,154.15,10.56]
[1748895589757,45.92289574,154.16,154.15,10.56]
[1748895590643,45.92289574,154.16,154.11,10.58]
[1748895590644,52.40968985,154.16,154.11,10.58]
[1748895590952,22.96144787,154.12,154.11,50.72]
[1748895591157,26.0,154.09,154.01,6.49308486]
[1748895591328,22.96144787,154.02,154.0,17.07341859]
[1748895591530,1.5708,154.07,154.0,17.07341859]
[1748895591826,22.96144787,154.01,154.0,10.58]
[1748895592228,45.92289574,154.01,154.0,10.58]
[1748895592435,22.96144787,154.01,153.96,10.58]
[1748895592641,22.96144787,153.97,153.96,10.58]
[1748895592839,22.96144787,153.97,153.96,57.23507759]
[1748895593028,22.96144787,153.98,153.96,57.23507759]
[1748895593244,38.3448097,153.98,153.96,57.23507759]
[1748895593562,25.89448819,154.06,153.96,57.23507759]
[1748895593728,38.3448097,153.99,153.96,73.47306148]
[1748895594359,26.0,154.03,153.96,73.47306148]
[1748895594660,38.3448097,153.99,153.96,73.47306148]
[1748895595763,25.89448819,154.06,153.97,18.64964886]
[1748895596151,38.3448097,154.05,154.01,38.3448097]
[1748895596461,38.3448097,154.05,154.02,50.78]
[1748895597333,25.89448819,154.06,154.03,38.3448097]
[1748895597536,25.89448819,154.06,154.04,6.4918203]
[1748895597853,64.23929789,154.06,154.05,40.2]
[1748895599332,64.23929789,154.06,154.05,46.69139889]
[1748895600656,25.89448819,154.06,154.05,46.69139889]
[1748895601369,38.3448097,154.1,154.05,101.26470583]
[1748895601747,38.3448097,154.09,154.05,101.26470583]
[1748895603662,38.3448097,154.08,154.05,62.91989613]
[1748895604038,38.3448097,154.09,154.05,101.26470583]
[1748895604238,38.3448097,154.08,154.05,62.91989613]
[1748895605461,38.3448097,154.09,154.05,62.91989613]
[1748895605764,38.3448097,154.11,154.07,22.71694684]
[1748895605940,38.3448097,154.1,154.08,50.82]
[1748895607241,38.3448097,154.1,154.09,6.4897138]
[1748895607451,148.0654,154.15,154.09,61.058808]
[1748895607682,38.3448097,154.13,154.09,22.7139983]
[1748895607881,38.3448097,154.12,154.09,22.7139983]
[1748895608085,38.3448097,154.11,154.09,6.4897138]
[1748895609655,38.3448097,154.12,154.09,22.7139983]
[1748895610055,38.3448097,154.11,154.09,6.4897138]
[1748895610259,38.3448097,154.1,154.08,50.8]
[1748895610455,38.3448097,154.09,154.08,10.56]
[1748895610985,38.3448097,154.09,154.05,40.26]
[1748895611183,38.3448097,154.1,154.05,40.26]
[1748895611184,38.3448097,154.06,154.05,40.26]
[1748895611583,38.3448097,154.06,154.04,10.56]
[1748895611784,38.3448097,154.05,154.04,10.56]
[1748895616563,38.48697127,154.05,154.01,40.22]
[1748895616880,38.3448097,154.02,154.01,40.22]
[1748895617395,154.42080584,154.07,154.01,40.22]
[1748895617396,22.99597374,154.03,154.01,40.22]
[1748895617705,22.99597374,154.03,154.02,6.49266329]
[1748895620894,22.99597374,154.03,154.01,40.22]
[1748895620895,22.99597374,154.03,153.96,42.23701701]
[1748895621063,22.99597374,153.98,153.97,57.2347717]
[1748895621265,1.81452314,154.07,153.97,57.2347717]
[1748895621266,22.99597374,154.0,153.97,73.47170097]
[1748895621472,22.99597374,154.03,153.99,22.99597374]
[1748895621678,22.99597374,154.03,154.0,40.18]
[1748895621879,22.99597374,154.03,154.01,6.49308486]
[1748895622081,22.99597374,154.05,154.02,10.56]
[1748895622292,22.99597374,154.04,154.03,40.18]
[1748895625068,22.99597374,154.04,154.02,10.56]
[1748895625269,169.53813531,154.08,154.02,10.56]
[1748895625270,26.0,154.05,154.03,40.24]
[1748895625465,22.99597374,154.04,154.03,40.24]
[1748895626685,22.99597374,154.04,154.02,50.78]
[1748895626885,22.99597374,154.03,154.02,50.78]
[1748895628481,22.99597374,154.03,154.02,10.56]
[1748895629182,22.99597374,154.03,154.02,50.76]
[1748895631489,172.4,154.05,154.02,57.25257347]
[1748895631674,22.99597374,154.03,154.02,57.25257347]
[1748895631874,146.4,154.05,154.02,57.25257347]
[1748895632096,146.4,154.09,154.02,57.25257347]
[1748895632399,22.99597374,154.04,154.02,73.48423169]
[1748895632809,22.99597374,154.04,154.02,57.25257347]
[1748895633499,22.99597374,154.03,154.02,57.25257347]
[1748895633906,22.99597374,154.03,154.02,17.05257347]
[1748895634104,22.99597374,154.03,154.02,57.25257347]
[1748895634397,22.99597374,154.03,154.02,10.56]
[1748895634598,22.99597374,154.03,154.02,50.76]
[1748895635300,22.99597374,154.03,154.02,50.74]
[1748895635674,22.99597374,154.03,154.02,50.76]
[1748895636894,169.39597374,154.05,154.02,57.25227714]
[1748895637079,169.39597374,154.05,154.02,73.48393536]
[1748895637409,22.99597374,154.04,154.02,57.25227714]
[1748895637896,146.4,154.05,154.02,57.25227714]
[1748895637897,169.39597374,154.05,154.02,57.25227714]
[1748895638500,22.99597374,154.04,154.02,57.25227714]
[1748895644812,146.4,154.09,154.02,96.4799091]
[1748895645012,22.99597374,154.07,154.02,96.4799091]
[1748895645308,22.99597374,154.06,154.02,96.4799091]
[1748895647509,146.4,154.09,154.02,96.4799091]
[1748895647510,22.99597374,154.03,154.02,17.05227714]
[1748895647687,22.99597374,154.03,154.02,57.23227714]
[1748895649088,22.99597374,154.04,154.02,57.23227714]
[1748895649290,22.99597374,154.04,154.03,40.18]
[1748895650296,22.99597374,154.06,154.03,40.18]
[1748895651080,146.4,154.09,154.04,6.4918203]
[1748895651081,22.99597374,154.05,154.04,6.4918203]
[1748895656523,22.99597374,154.05,154.03,6.49215163]
[1748895656695,22.99597374,154.04,154.03,6.49215163]
[1748895657102,22.99597374,154.04,154.03,46.67215163]
[1748895657600,22.99597374,154.04,154.03,40.18]
[1748895659095,22.99597374,154.04,154.03,46.67224177]
[1748895662019,146.4,154.09,154.03,46.67224177]
[1748895662216,169.39597374,154.09,154.04,41.6456226]
[1748895662393,22.99597374,154.08,154.04,41.6456226]
[1748895663403,22.99597374,154.05,154.04,6.49166495]
[1748895663600,22.99597374,154.05,154.04,46.65166495]
[1748895669017,22.99597374,154.05,154.04,6.49166495]
[1748895669327,22.99597374,154.05,154.04,46.65166495]
[1748895672939,22.99597374,154.05,154.04,40.16]
[1748895675224,22.99597374,154.05,154.03,40.16]
[1748895675425,24.58197374,154.04,154.02,10.56]
[1748895675629,169.39597374,154.03,154.02,10.56]
[1748895676401,169.39597374,154.03,154.0,40.16]
[1748895676599,169.39597374,154.03,154.0,46.65348323]
[1748895676600,22.99597374,154.01,154.0,46.65348323]
[1748895676803,22.99597374,154.01,154.0,40.16]
[1748895677017,22.99597374,154.01,154.0,46.65349837]
[1748895677329,169.39597374,154.03,154.0,46.65349837]
[1748895677728,146.4,154.03,154.0,85.88323834]
[1748895678210,169.39597374,154.03,154.0,62.8872646]
[1748895679337,22.99597374,154.01,154.0,6.49349837]
[1748895679516,22.99597374,154.01,154.0,46.65349837]
[1748895681211,146.4,154.07,154.0,69.64947211]
[1748895681448,22.99597374,154.04,154.0,46.65349837]
[1748895681609,22.99597374,154.03,154.0,62.8872646]
[1748895682630,146.4,154.06,154.0,62.8872646]
[1748895682826,22.99597374,154.03,154.0,62.8872646]
[1748895683020,22.99597374,154.04,154.0,62.8872646]
[1748895685744,22.99597374,154.03,154.0,62.8872646]
[1748895686113,22.99597374,154.03,154.02,6.49266329]
[1748895686426,22.99597374,154.03,154.02,46.65266329]
[1748895687940,22.99597374,154.03,154.02,40.16]
[1748895688324,22.99597374,154.03,154.02,46.65266329]
[1748895691546,22.99597374,154.03,154.02,40.16]
[1748895692444,22.99597374,154.03,154.02,46.65266329]
[1748895697435,22.99597374,154.03,154.02,40.16]
[1748895698134,22.99597374,154.03,154.01,10.54]
[1748895698335,22.99597374,154.02,154.01,10.54]
[1748895698831,22.99597374,154.02,154.01,17.03308486]
[1748895701047,22.99597374,154.02,154.01,10.54]
[1748895711470,22.99597374,154.02,153.98,46.65433892]
[1748895711674,22.99597374,153.99,153.98,46.65433892]
[1748895711844,22.99597374,153.99,153.97,10.54]
[1748895712042,22.99597374,153.98,153.97,10.54]
[1748895713447,152.6275,154.01,153.97,17.0347717]
[1748895713448,22.99597374,153.99,153.97,17.0347717]
[1748895716652,22.99597374,153.98,153.97,17.0347717]
[1748895717564,22.99597374,153.99,153.97,33.27170097]
[1748895717863,146.4,154.01,153.98,22.99597374]
[1748895718060,146.4,154.01,154.0,6.49350649]
[1748895718852,146.4,154.01,154.0,17.03350649]
[1748895720861,22.99597374,154.03,154.0,17.03350649]
[1748895721065,31.00324773,154.04,154.01,40.16]
[1748895721457,169.39597374,154.05,154.01,40.16]
[1748895721662,22.99597374,154.04,154.01,40.16]
[1748895722264,22.99597374,154.04,154.02,6.49266329]
[1748895722587,146.4,154.05,154.03,40.16]
[1748895723076,22.99597374,154.04,154.03,40.16]
[1748895724374,22.99597374,154.04,154.03,46.65224177]
[1748895725880,146.4,154.05,154.03,46.65224177]
[1748895726257,22.99597374,154.04,154.03,46.65224177]
[1748895728582,22.99597374,154.04,154.01,6.49308486]
[1748895728787,22.99597374,154.02,154.01,6.49308486]
[1748895729093,22.99597374,154.02,154.01,46.65308486]
[1748895731479,22.99597374,154.02,154.01,6.49308486]
[1748895731695,22.99597374,154.02,154.01,46.65308486]
[1748895733495,22.99597374,154.02,154.01,40.14]
[1748895734703,22.99597374,154.02,154.01,46.63308486]
[1748895734921,22.99597374,154.02,154.01,40.14]
[1748895735705,22.99597374,154.03,154.01,40.14]
[1748895736303,22.99597374,154.02,154.01,40.14]
[1748895736696,22.99597374,154.02,154.01,46.63308486]
[1748895740610,147.9274,154.1,154.01,85.86177076]
[1748895740793,22.99597374,154.07,154.02,22.99597374]
[1748895740988,22.99597374,154.06,154.03,40.14]
[1748895741998,22.99597374,154.06,154.04,6.4918203]
[1748895742187,22.99597374,154.06,154.05,50.68]
[1748895743110,22.99597374,154.07,154.05,50.68]
[1748895743312,173.9274,154.1,154.05,50.68]
[1748895743519,21.73385491,154.08,154.05,50.68]
[1748895744224,22.99597374,154.07,154.06,6.49097754]
[1748895746521,22.99597374,154.08,154.06,22.71842139]
[1748895746723,22.99597374,154.09,154.07,40.14]
[1748895747306,22.99597374,154.08,154.07,40.14]
[1748895748599,22.99597374,154.08,154.07,46.63055624]
[1748895749215,22.99597374,154.09,154.07,46.63055624]
[1748895749817,146.4,154.1,154.07,62.85694684]
[1748895750000,6.5399,154.16,154.07,62.85694684]
[1748895750001,148.009,154.18,154.09,22.99597374]
[1748895750196,22.99597374,154.15,154.1,73.85597374]
[1748895750631,22.99597374,154.15,154.11,6.48887158]
[1748895750806,22.99597374,154.15,154.12,40.32]
[1748895751820,22.99597374,154.16,154.12,40.32]
[1748895752009,146.4,154.18,154.13,22.99597374]
[1748895752236,169.39597374,154.18,154.14,63.29597374]
[1748895752413,169.39597374,154.18,154.15,10.54]
[1748895752738,1.609,154.22,154.17,6.48634624]
[1748895752908,22.99597374,154.2,154.18,40.3]
[1748895754422,1.609,154.22,154.18,40.3]
[1748895754619,1.609,154.22,154.18,46.78577938]
[1748895754920,22.99597374,154.2,154.18,46.78577938]
[1748895756928,22.99597374,154.2,154.18,40.3]
[1748895757516,22.99597374,154.2,154.18,46.78592204]
[1748895759114,22.99597374,154.2,154.18,40.3]
[1748895759308,22.99597374,154.2,154.18,46.78588968]
[1748895766655,22.99597374,154.22,154.18,46.78588968]
[1748895766949,146.4,154.23,154.19,22.99597374]
[1748895767146,146.4,154.23,154.2,50.8]
[1748895767147,169.39597374,154.23,154.2,50.8]
[1748895768228,169.39597374,154.23,154.21,6.48466377]
[1748895768433,169.39597374,154.23,154.22,40.16]
[1748895769649,146.4,154.23,154.22,40.16]
[1748895770655,146.4,154.23,154.22,46.64424328]
[1748895772339,22.99597374,154.24,154.22,46.64424328]
[1748895772537,146.4,154.27,154.22,46.64424328]
[1748895773058,22.99597374,154.25,154.22,46.64424328]
[1748895777059,22.99597374,154.24,154.22,46.64424328]
[1748895777665,22.99597374,154.23,154.21,6.48447884]
[1748895777841,22.99597374,154.22,154.19,50.78]
[1748895778042,22.99597374,154.2,154.19,50.78]
[1748895778735,22.99597374,154.2,154.19,57.26550489]
[1748895779056,22.99597374,154.21,154.19,57.26550489]
[1748895779263,22.99597374,154.22,154.19,73.47926713]
[1748895780852,146.4,154.23,154.19,96.47524087]
[1748895781157,169.39597374,154.23,154.19,96.47524087]
[1748895781463,146.4,154.23,154.19,96.47524087]
[1748895781655,146.4,154.23,154.2,22.99597374]
[1748895781857,22.99597374,154.24,154.21,40.18]
[1748895782837,22.99597374,154.24,154.22,6.48424328]
[1748895783037,22.99597374,154.24,154.23,40.16]
[1748895783254,22.99597374,154.25,154.23,40.16]
[1748895783461,22.99597374,154.25,154.24,10.56]
[1748895783667,146.4,154.27,154.24,10.56]
[1748895783873,169.39597374,154.27,154.25,40.16]
[1748895784168,22.99597374,154.26,154.25,40.16]
[1748895785671,169.39597374,154.27,154.25,46.64298217]
[1748895786440,22.99597374,154.26,154.25,46.64298217]
[1748895787178,22.99597374,154.29,154.25,62.85043759]
[1748895787478,22.99597374,154.29,154.25,85.84641133]
[1748895788272,169.39597374,154.3,154.26,22.99597374]
[1748895788477,169.39597374,154.3,154.27,40.1]
[1748895788684,146.4,154.3,154.27,63.09597374]
[1748895789282,22.99597374,154.29,154.25,6.48298217]
[1748895789469,22.99597374,154.28,154.26,40.14]
[1748895789770,22.99597374,154.27,154.26,40.14]
[1748895790546,22.99597374,154.27,154.26,46.6225619]
[1748895791664,22.99597374,154.27,154.26,40.14]
[1748895791845,22.99597374,154.27,154.24,10.56]
[1748895792048,22.99597374,154.25,154.24,50.68]
[1748895793376,22.99597374,154.25,154.24,57.16340248]
[1748895793588,22.99597374,154.25,154.24,50.68]
[1748895793784,22.99597374,154.25,154.24,50.66]
[1748895793961,22.99597374,154.25,154.24,10.56]
[1748895794356,146.4,154.3,154.24,17.04336288]
[1748895794682,22.99597374,154.26,154.24,17.04336288]
[1748895794842,22.99597374,154.25,154.24,17.04336288]
[1748895795069,22.99597374,154.25,154.24,57.14336288]
[1748895796582,22.99597374,154.25,154.24,50.66]
[1748895796770,22.99597374,154.25,154.24,10.56]
[1748895796973,22.99597374,154.25,154.24,50.64]
[1748895797396,22.99597374,154.25,154.24,10.56]
[1748895801899,146.4,154.24,154.21,40.08]
[1748895802196,22.99597374,154.22,154.21,40.08]
[1748895802381,22.99597374,154.22,154.2,10.56]
[1748895802586,22.99597374,154.21,154.2,10.56]
[1748895803293,146.4,154.24,154.2,10.56]
[1748895803499,169.39597374,154.24,154.21,40.08]
[1748895803701,22.99597374,154.23,154.21,40.08]
[1748895804020,22.99597374,154.22,154.21,40.08]
[1748895805910,146.4,154.21,154.16,17.04659766]
[1748895806082,22.99597374,154.19,154.16,57.14659766]
[1748895806291,169.39597374,154.2,154.16,73.36351514]
[1748895806815,22.99597374,154.19,154.16,57.14659766]
[1748895809023,22.99597374,154.18,154.16,57.14659766]
[1748895815018,22.99597374,154.18,154.17,40.1]
[1748895815215,22.99597374,154.18,154.16,17.04659766]
[1748895815416,22.99597374,154.18,154.17,40.1]
[1748895816119,22.99597374,154.18,154.16,17.04659766]
[1748895816325,22.99597374,154.18,154.17,40.1]
[1748895816902,22.99597374,154.18,154.17,46.58634624]
[1748895817621,146.4,154.2,154.17,46.58634624]
[1748895817926,22.99597374,154.19,154.17,46.58634624]
[1748895818332,146.4,154.2,154.17,46.58634624]
[1748895818501,22.99597374,154.19,154.17,46.58634624]
[1748895818701,169.39597374,154.2,154.17,46.58634624]
[1748895819616,22.99597374,154.19,154.17,46.58634624]
[1748895820631,22.99597374,154.18,154.17,40.1]
[1748895820826,22.99597374,154.18,154.17,46.58634624]
[1748895824634,22.99597374,154.18,154.16,10.56]
[1748895825006,22.99597374,154.18,154.13,3.62660413]
[1748895825007,58.53142584,154.18,154.13,3.62660413]
[1748895825326,58.53142584,154.18,154.13,43.72660413]
[1748895825327,0.28432314,154.17,154.13,43.72660413]
[1748895825540,22.99597374,154.16,154.13,43.72660413]
[1748895827715,22.99597374,154.16,154.12,57.10839916]
[1748895828233,22.99597374,154.13,154.12,57.10839916]
[1748895830424,22.99597374,154.14,154.12,57.10839916]
[1748895830709,22.99597374,154.15,154.12,73.32952555]
[1748895832034,22.99597374,154.13,154.12,10.52]
[1748895833622,22.99597374,154.13,154.12,17.00845055]
[1748895833936,22.99597374,154.13,154.12,10.52]
[1748895834820,22.99597374,154.13,154.12,17.00845055]
[1748895835327,22.99597374,154.13,154.12,10.52]
[1748895835935,22.99597374,154.13,154.12,17.00845055]
[1748895836401,22.99597374,154.14,154.12,17.00845055]
[1748895837246,22.99597374,154.16,154.12,56.22555068]
[1748895837832,169.39597374,154.18,154.14,22.99597374]
[1748895838023,22.99597374,154.18,154.15,40.1]
[1748895839541,22.99597374,154.18,154.16,6.48676699]
[1748895842022,22.99597374,154.2,154.17,10.52]
[1748895842240,22.99597374,154.2,154.18,40.1]
[1748895843332,22.99597374,154.2,154.19,6.48550489]
[1748895847137,22.99597374,154.2,154.18,40.1]
[1748895847346,22.99597374,154.19,154.18,40.1]
[1748895847547,22.99597374,154.19,154.18,46.58592554]
[1748895847742,146.4,154.21,154.18,46.58592554]
[1748895847929,9.81656422,154.23,154.19,22.99597374]
[1748895847930,31.18573796,154.23,154.19,22.99597374]
[1748895848131,31.18573796,154.23,154.2,6.4850843]
[1748895848331,31.18573796,154.23,154.21,40.1]
[1748895848549,31.18573796,154.23,154.22,10.52]
[1748895849956,31.18573796,154.23,154.2,40.1]
[1748895850263,8.18976422,154.23,154.2,46.5850843]
[1748895850447,31.18573796,154.23,154.2,46.5850843]
[1748895850831,8.18976422,154.23,154.2,69.58105804]
[1748895851161,8.18976422,154.23,154.2,85.7937688]
[1748895851336,31.18573796,154.23,154.2,62.79779506]
[1748895855939,146.4,154.26,154.2,62.79779506]
[1748895856139,22.99597374,154.23,154.2,62.79779506]
[1748895856641,146.4,154.26,154.2,62.79779506]
[1748895856862,22.99597374,154.23,154.2,62.79779506]
[1748895860539,22.99597374,154.21,154.2,6.4850843]
[1748895860746,22.99597374,154.21,154.2,40.08]
[1748895861964,22.99597374,154.24,154.2,63.07597374]
[1748895862193,22.99597374,154.25,154.2,63.07597374]
[1748895862363,22.99597374,154.25,154.21,22.69632319]
[1748895862853,146.4,154.26,154.23,22.99597374]
[1748895863168,146.4,154.26,154.24,73.59597374]
[1748895864367,146.4,154.26,154.24,50.6]
[1748895864566,169.39597374,154.26,154.24,57.0832633]
[1748895866062,146.4,154.26,154.24,80.07923704]
[1748895866247,146.4,154.26,154.25,22.99597374]
[1748895866558,146.4,154.26,154.25,29.47895591]